Workbook

Sheet Calculator
T2: T1 FORM
I3: Detailed Travel Schedule / Travel Diary (incl. private travel cost contribution) | V3: `````
D10: AFTER COMPLETING THE FORM, CONVERT TO PDF AND ATTACH TO YOUR TEMS TRAVEL REQUEST
D11: For variations post trip, update DTS/Travel Diary and re-attach in TEMS Request
D13: Date: | K13: =TODAY() -> 2023-08-21
D15: Staff/Student Name: | Q15: Staff/Student ID:
AB16: B - Conference | AC16: B - Conference | AE16: 1 | AF16: : 00 AM
D17: School / Division: | Q17: Position | AB17: B - Research | AC17: B - Symposium | AE17: 2 | AF17: : 01 AM
AB18: B - Symposium | AC18: B - Research | AE18: =AE17+1 -> 3 | AF18: : 02 AM
B19: AA | D19: Summary of trip | Q19: Cost of trip | W19: Drop list | Y19: Date Validation | AB19: B - Teaching | AC19: B - Business Meeting | AE19: =AE18+1 -> 4 | AF19: : 03 AM
B20: AA | D20: Date of Departure | Q20: =IF($I$30=$AB$36,"",$AB$40) -> Total WSU funding for Trip (including Airfare) | W20: Conference | Y20: Total Trip | Z20: =K22-K20+1 -> 1 | AB20: B - University Organised Event | AC20: B - External Organised Event | AE20: 5 | AF20: : 04 AM
B21: AA | W21: Workshop | Y21: Total Trip+1 | Z21: =Z20+1 -> 2 | AB21: B - External Organised Event | AC21: B - University Organised Event | AE21: 6 | AF21: : 05 AM
B22: AA | D22: Date of Return | Q22: Cost of Airfare | W22: Research | AB22: B - Academic Development (ADP) | AC22: B - Other - Business Only | AE22: 7 | AF22: : 06 AM
B23: AA | W23: Business Meeting | Y23: No of bus days +1 | Z23: =L36+1 ->  | AB23: B - Other - Business Only | AC23: B - Academic Development (ADP) | AE23: 8 | AF23: : 07 AM
B24: AA | D24: Purpose of Trip | W24: Others | AB24: B - Student Exchange/Placement | AC24: B - Student Exchange/Placement | AE24: 9 | AF24: : 08 AM
B25: AA | W25: Private - No Annual Leave | AB25: B - Student Residential | AC25: B - Student Residential | AE25: 10 | AF25: : 09 AM
B26: AA | E26: Other (Please Specify) | W26: Private - Annual Leave | AB26: B - Student Tour Group | AC26: B - Student Tour Group | AE26: 11 | AF26: : 10 AM
B27: AA | W27: Unavoidable | AB27: B - Field Trip | AC27: B - Graduation | AE27: 12 | AF27: : 11 AM
B28: AA | D28: Is this trip Domestic or International? | W28: Other - Business Only | AB28: B - Graduation | AC28: B - Field Trip | AF28: : 12 AM
B29: AA | W29: International | AB29: B - Business Meeting | AC29: B - Teaching | AF29: : 13 AM
B30: AA | D30: Please Select Traveller Type | Q30: Other Private Costs funded by WSU (excluding Airfare) | W30: Domestic | AC30: B - Travel Day | AF30: : 14 AM
B31: AA | AC31: B - Unavoidable Day | AF31: : 15 AM
D32: Are you a paid UWS staff member | AC32: P - Private - No Annual Leave | AF32: : 16 AM
AC33: P - Private - Annual Leave | AF33: : 17 AM
D34: (No user input required) | AF34: : 18 AM
B35: AA | D35: Dual Purpose Analysis | L35: =IF(K20="",IF(K22="","",""),IF(K22="","",K22-K20)) ->  | Q35: Calculation of FBT | W35: =IF($I$26="","",$I$26) ->  | AB35: WSU Staff - Regular | AF35: : 19 AM
B36: AA | D36: Total Travel Days | L36: =IF(L35="","",K22-K20+1) ->  | Q36: Portion of Airfare subject to FBT | T36: =IF(L36="","",IF($L$50=$W$37,$L$48*$T$22,"Nil")) ->  | AB36: WSU Staff - Casual | AF36: : 20 AM
B37: AA | W37: Yes | AB37: WSU Student (PHD) | AF37: : 21 AM
B38: AA | D38: Number of Business Days | L38: =IF(L36="","",COUNTIF(K54:O784,"B - Conference")+COUNTIF(K54:O784,"B - External Organised Event")+COUNTIF(K54:O784,"B - Academic Development (ADP)")+COUNTIF(K54:O784,"B - Field Trip")+COUNTIF(K54:O784,"B - Graduation")+COUNTIF(K54:O784,"B - Other - Business Only ")+COUNTIF(K54:O784,"B - Research")+COUNTIF(K54:O784,"B - Student Exchange/Placement")+COUNTIF(K54:O784,"B - Student Residential")+COUNTIF(K54:O784,"B - Student Tour Group")+COUNTIF(K54:O784,"B - Symposium")+COUNTIF(K54:O784,"B - Teaching")+COUNTIF(K54:O784,"B - University Organised Event")+COUNTIF(K54:O784,"B - Business Meeting")) ->  | Q38: Portion of other cost subject to FBT | T38: =IF(L36="","",IF($T$30="","Nil",$T$30)) ->  | W38: No | AB38: WSU Student (Non PHD) | AF38: : 22 AM
B39: AA | AB39: WSU Visitor/Guest | AF39: : 23 AM
B40: AA | D40: Number of Unavoidable / Travel Days | L40: =IF(L36="","",COUNTIF(K54:O784,"B - Unavoidable Day")+COUNTIF(K54:O784,"B - Travel Day")) ->  | Q40: Total Cost Subject to FBT | T40: =IF(L36="","",SUM(T36:T38)) ->  | AB40: Total WSU funding for Trip (including Airfare) | AF40: : 24 AM
B41: AA | AF41: : 25 AM
B42: AA | D42: Number of Private Days | L42: =IF(L36="","",COUNTIF(K54:O784,"P - Private - No Annual Leave")+COUNTIF(K54:O784,"P - Private - Annual Leave")) ->  | Q42: Total Contribution required from Traveller | T42: =T40 ->  | AF42: : 26 AM
B43: AA | AF43: : 27 AM
B44: AA | D44: Number of Annual Leave Days to be taken | L44: =IF(L38="","",COUNTIF(K54:O420,"P - Private - Annual Leave")) ->  | AF44: : 28 AM
B45: AA | AF45: : 29 AM
B46: AA | D46: % of Business Portion | L46: =IF(L36="","",(L38+L40)/L36) ->  | AF46: : 30 AM
B47: AA | AF47: : 31 AM
B48: AA | D48: % of Private Portion | L48: =IF(L36="","",L42/L36) ->  | AB48: Drop list | AD48: Purpose Drop down list | AF48: : 32 AM
B49: AA | AB49: Conference | AD49: Conference | AF49: : 33 AM
B50: AA | D50: Is this trip subject to Fringe Benefits Tax? | L50: =IF(L36="","",IF($I$30=$AB$38,$W$38,IF($I$30=$AB$39,$W$38,IF($I$30=$AB$37,IF($K$32=$W$38,$W$38,IF(L48>=50%,$W$37,$W$38)),IF(L48>=50%,$W$37,$W$38))))) ->  | AB50: Workshop | AD50: Workshop | AF50: : 34 AM
B51: AA | AB51: Research | AD51: Research | AF51: : 35 AM
B52: AA | D52: Detailed Itinerary | F52: =COUNTIF(D54:D784,">1/1/1900") -> 0 | AB52: Business Meeting | AD52: Business Meeting | AF52: : 36 AM
B53: AA | D53: DIARY ENTRY DATE | E53: DAY | F53: DATE | G53: START TIME | I53: END TIME | K53: PURPOSE (Majority activity for the day) | P53: DESCRIPTION OF ACTIVITY (Give Sufficient Detail) | AB53: Others | AD53: Other - Business Only | AF53: : 37 AM
B54: =IF(H54="","ZZ","AA") -> ZZ | C54: 0 | D54: =IF(E54:E418="","",$K$13) ->  | E54: =IF(F54="","",F54) ->  | F54: =IF(K20="","",K20) ->  | V54: =IF(H54="","ZZ","AA") -> ZZ | W54: 1 | AB54: Other - Business Only | AD54: Private - No Annual Leave | AF54: : 38 AM
B55: =IF(H55="","ZZ","AA") -> ZZ | C55: =IF(W55<$Z$21,W55,"") ->  | D55: =IF(E55:E419="","",$K$13) ->  | E55: =IF(F55="","",F55) ->  | F55: =IF(C55="","",F54+1) ->  | V55: ZZ | W55: =W54+1 -> 2 | AD55: Private - Annual Leave | AF55: : 39 AM
B56: ZZ | D56: =IF(E56:E420="","",$K$13) ->  | F56: =IF(C56="","",F55+1) ->  | V56: ZZ | W56: =W55+1 -> 3 | AB56: Private - No Annual Leave | AD56: Unavoidable | AF56: : 40 AM
B57: ZZ | D57: =IF(E57:E421="","",$K$13) ->  | V57: ZZ | W57: 4 | AB57: Private - Annual Leave | AF57: : 41 AM
B58: ZZ | D58: =IF(E58:E422="","",$K$13) ->  | V58: ZZ | W58: 5 | AB58: Unavoidable | AF58: : 42 AM
B59: ZZ | D59: =IF(E59:E423="","",$K$13) ->  | V59: ZZ | W59: 6 | AF59: : 43 AM
B60: ZZ | D60: =IF(E60:E424="","",$K$13) ->  | V60: ZZ | W60: 7 | AB60: International | AF60: : 44 AM
B61: ZZ | D61: =IF(E61:E425="","",$K$13) ->  | V61: ZZ | W61: 8 | AB61: Domestic | AF61: : 45 AM
B62: ZZ | D62: =IF(E62:E426="","",$K$13) ->  | V62: ZZ | W62: 9 | AF62: : 46 AM
B63: ZZ | D63: =IF(E63:E427="","",$K$13) ->  | V63: ZZ | W63: 10 | AF63: : 47 AM
B64: ZZ | D64: =IF(E64:E428="","",$K$13) ->  | V64: ZZ | W64: 11 | AF64: : 48 AM
B65: ZZ | D65: =IF(E65:E429="","",$K$13) ->  | V65: ZZ | W65: 12 | AF65: : 49 AM
B66: ZZ | D66: =IF(E66:E430="","",$K$13) ->  | V66: ZZ | W66: 13 | AF66: : 50 AM
B67: ZZ | D67: =IF(E67:E431="","",$K$13) ->  | V67: ZZ | W67: 14 | AF67: : 51 AM
B68: ZZ | D68: =IF(E68:E432="","",$K$13) ->  | V68: ZZ | W68: 15 | AF68: : 52 AM
B69: ZZ | D69: =IF(E69:E433="","",$K$13) ->  | V69: ZZ | W69: 16 | AF69: : 53 AM
B70: ZZ | D70: =IF(E70:E434="","",$K$13) ->  | V70: ZZ | W70: 17 | AF70: : 54 AM
B71: ZZ | D71: =IF(E71:E435="","",$K$13) ->  | V71: ZZ | W71: 18 | AF71: : 55 AM
B72: ZZ | D72: =IF(E72:E436="","",$K$13) ->  | V72: ZZ | W72: 19 | AF72: : 56 AM
B73: ZZ | D73: =IF(E73:E437="","",$K$13) ->  | V73: ZZ | W73: 20 | AF73: : 57 AM
B74: ZZ | D74: =IF(E74:E438="","",$K$13) ->  | V74: ZZ | W74: 21 | AF74: : 58 AM
B75: ZZ | D75: =IF(E75:E439="","",$K$13) ->  | V75: ZZ | W75: 22 | AF75: : 59 AM
B76: ZZ | D76: =IF(E76:E440="","",$K$13) ->  | V76: ZZ | W76: 23 | AF76: : 00 PM
B77: ZZ | D77: =IF(E77:E441="","",$K$13) ->  | V77: ZZ | W77: 24 | AF77: : 01 PM
B78: ZZ | D78: =IF(E78:E442="","",$K$13) ->  | V78: ZZ | W78: 25 | AF78: : 02 PM
B79: ZZ | D79: =IF(E79:E443="","",$K$13) ->  | V79: ZZ | W79: 26 | AF79: : 03 PM
B80: ZZ | D80: =IF(E80:E444="","",$K$13) ->  | V80: ZZ | W80: 27 | AF80: : 04 PM
B81: ZZ | D81: =IF(E81:E445="","",$K$13) ->  | V81: ZZ | W81: 28 | AF81: : 05 PM
B82: ZZ | D82: =IF(E82:E446="","",$K$13) ->  | V82: ZZ | W82: 29 | AF82: : 06 PM
B83: ZZ | D83: =IF(E83:E447="","",$K$13) ->  | V83: ZZ | W83: 30 | AF83: : 07 PM
B84: ZZ | D84: =IF(E84:E448="","",$K$13) ->  | V84: ZZ | W84: 31 | AF84: : 08 PM
B85: ZZ | D85: =IF(E85:E449="","",$K$13) ->  | V85: ZZ | W85: 32 | AF85: : 09 PM
B86: ZZ | D86: =IF(E86:E450="","",$K$13) ->  | V86: ZZ | W86: 33 | AF86: : 10 PM
B87: ZZ | D87: =IF(E87:E451="","",$K$13) ->  | V87: ZZ | W87: 34 | AF87: : 11 PM
B88: ZZ | D88: =IF(E88:E452="","",$K$13) ->  | V88: ZZ | W88: 35 | AF88: : 12 PM
B89: ZZ | D89: =IF(E89:E453="","",$K$13) ->  | V89: ZZ | W89: 36 | AF89: : 13 PM
B90: ZZ | D90: =IF(E90:E454="","",$K$13) ->  | V90: ZZ | W90: 37 | AF90: : 14 PM
B91: ZZ | D91: =IF(E91:E455="","",$K$13) ->  | V91: ZZ | W91: 38 | AF91: : 15 PM
B92: ZZ | D92: =IF(E92:E456="","",$K$13) ->  | V92: ZZ | W92: 39 | AF92: : 16 PM
B93: ZZ | D93: =IF(E93:E457="","",$K$13) ->  | V93: ZZ | W93: 40 | AF93: : 17 PM
B94: ZZ | D94: =IF(E94:E458="","",$K$13) ->  | V94: ZZ | W94: 41 | AF94: : 18 PM
B95: ZZ | D95: =IF(E95:E459="","",$K$13) ->  | V95: ZZ | W95: 42 | AF95: : 19 PM
B96: ZZ | D96: =IF(E96:E460="","",$K$13) ->  | V96: ZZ | W96: 43 | AF96: : 20 PM
B97: ZZ | D97: =IF(E97:E461="","",$K$13) ->  | V97: ZZ | W97: 44 | AF97: : 21 PM
B98: ZZ | D98: =IF(E98:E462="","",$K$13) ->  | V98: ZZ | W98: 45 | AF98: : 22 PM
B99: ZZ | D99: =IF(E99:E463="","",$K$13) ->  | V99: ZZ | W99: 46 | AF99: : 23 PM
B100: ZZ | D100: =IF(E100:E464="","",$K$13) ->  | V100: ZZ | W100: 47 | AF100: : 24 PM
B101: ZZ | D101: =IF(E101:E465="","",$K$13) ->  | V101: ZZ | W101: 48 | AF101: : 25 PM
B102: ZZ | D102: =IF(E102:E466="","",$K$13) ->  | V102: ZZ | W102: 49 | AF102: : 26 PM
B103: ZZ | D103: =IF(E103:E467="","",$K$13) ->  | V103: ZZ | W103: 50 | AF103: : 27 PM
B104: ZZ | D104: =IF(E104:E468="","",$K$13) ->  | V104: ZZ | W104: 51 | AF104: : 28 PM
B105: ZZ | D105: =IF(E105:E469="","",$K$13) ->  | V105: ZZ | W105: 52 | AF105: : 29 PM
B106: ZZ | D106: =IF(E106:E470="","",$K$13) ->  | V106: ZZ | W106: 53 | AF106: : 30 PM
B107: ZZ | D107: =IF(E107:E471="","",$K$13) ->  | V107: ZZ | W107: 54 | AF107: : 31 PM
B108: ZZ | D108: =IF(E108:E472="","",$K$13) ->  | V108: ZZ | W108: 55 | AF108: : 32 PM
B109: ZZ | D109: =IF(E109:E473="","",$K$13) ->  | V109: ZZ | W109: 56 | AF109: : 33 PM
B110: ZZ | D110: =IF(E110:E474="","",$K$13) ->  | V110: ZZ | W110: 57 | AF110: : 34 PM
B111: ZZ | D111: =IF(E111:E475="","",$K$13) ->  | V111: ZZ | W111: 58 | AF111: : 35 PM
B112: ZZ | D112: =IF(E112:E476="","",$K$13) ->  | V112: ZZ | W112: 59 | AF112: : 36 PM
B113: ZZ | D113: =IF(E113:E477="","",$K$13) ->  | V113: ZZ | W113: 60 | AF113: : 37 PM
B114: ZZ | D114: =IF(E114:E478="","",$K$13) ->  | V114: ZZ | W114: 61 | AF114: : 38 PM
B115: ZZ | D115: =IF(E115:E479="","",$K$13) ->  | V115: ZZ | W115: 62 | AF115: : 39 PM
B116: ZZ | D116: =IF(E116:E480="","",$K$13) ->  | V116: ZZ | W116: 63 | AF116: : 40 PM
B117: ZZ | D117: =IF(E117:E481="","",$K$13) ->  | V117: ZZ | W117: 64 | AF117: : 41 PM
B118: ZZ | D118: =IF(E118:E482="","",$K$13) ->  | E118: =IF(F118="","",F118) ->  | V118: =IF(H118="","ZZ","AA") -> ZZ | W118: 65 | AF118: : 42 PM
B119: =IF(H119="","ZZ","AA") -> ZZ | C119: =IF(W119<$Z$21,W119,"") ->  | D119: =IF(E119:E483="","",$K$13) ->  | V119: ZZ | W119: 66 | AF119: : 43 PM
B120: ZZ | D120: =IF(E120:E484="","",$K$13) ->  | F120: =IF(C120="","",F119+1) ->  | V120: ZZ | W120: =W119+1 -> 67 | AF120: : 44 PM
B121: ZZ | D121: =IF(E121:E485="","",$K$13) ->  | V121: ZZ | W121: 68 | AF121: : 45 PM
B122: ZZ | D122: =IF(E122:E486="","",$K$13) ->  | V122: ZZ | W122: 69 | AF122: : 46 PM
B123: ZZ | D123: =IF(E123:E487="","",$K$13) ->  | V123: ZZ | W123: 70 | AF123: : 47 PM
B124: ZZ | D124: =IF(E124:E488="","",$K$13) ->  | V124: ZZ | W124: 71 | AF124: : 48 PM
B125: ZZ | D125: =IF(E125:E489="","",$K$13) ->  | V125: ZZ | W125: 72 | AF125: : 49 PM
B126: ZZ | D126: =IF(E126:E490="","",$K$13) ->  | V126: ZZ | W126: 73 | AF126: : 50 PM
B127: ZZ | D127: =IF(E127:E491="","",$K$13) ->  | V127: ZZ | W127: 74 | AF127: : 51 PM
B128: ZZ | D128: =IF(E128:E492="","",$K$13) ->  | V128: ZZ | W128: 75 | AF128: : 52 PM
B129: ZZ | D129: =IF(E129:E493="","",$K$13) ->  | V129: ZZ | W129: 76 | AF129: : 53 PM
B130: ZZ | D130: =IF(E130:E494="","",$K$13) ->  | V130: ZZ | W130: 77 | AF130: : 54 PM
B131: ZZ | D131: =IF(E131:E495="","",$K$13) ->  | V131: ZZ | W131: 78 | AF131: : 55 PM
B132: ZZ | D132: =IF(E132:E496="","",$K$13) ->  | V132: ZZ | W132: 79 | AF132: : 56 PM
B133: ZZ | D133: =IF(E133:E497="","",$K$13) ->  | V133: ZZ | W133: 80 | AF133: : 57 PM
B134: ZZ | D134: =IF(E134:E498="","",$K$13) ->  | V134: ZZ | W134: 81 | AF134: : 58 PM
B135: ZZ | D135: =IF(E135:E499="","",$K$13) ->  | V135: ZZ | W135: 82 | AF135: : 59 PM
B136: ZZ | D136: =IF(E136:E500="","",$K$13) ->  | V136: ZZ | W136: 83
B137: ZZ | D137: =IF(E137:E501="","",$K$13) ->  | V137: ZZ | W137: 84
B138: ZZ | D138: =IF(E138:E502="","",$K$13) ->  | V138: ZZ | W138: 85
B139: ZZ | D139: =IF(E139:E503="","",$K$13) ->  | V139: ZZ | W139: 86
B140: ZZ | D140: =IF(E140:E504="","",$K$13) ->  | V140: ZZ | W140: 87
B141: ZZ | D141: =IF(E141:E505="","",$K$13) ->  | V141: ZZ | W141: 88
B142: ZZ | D142: =IF(E142:E506="","",$K$13) ->  | V142: ZZ | W142: 89
B143: ZZ | D143: =IF(E143:E507="","",$K$13) ->  | V143: ZZ | W143: 90
B144: ZZ | D144: =IF(E144:E508="","",$K$13) ->  | V144: ZZ | W144: 91
B145: ZZ | D145: =IF(E145:E509="","",$K$13) ->  | V145: ZZ | W145: 92
B146: ZZ | D146: =IF(E146:E510="","",$K$13) ->  | V146: ZZ | W146: 93
B147: ZZ | D147: =IF(E147:E511="","",$K$13) ->  | V147: ZZ | W147: 94
B148: ZZ | D148: =IF(E148:E512="","",$K$13) ->  | V148: ZZ | W148: 95
B149: ZZ | D149: =IF(E149:E513="","",$K$13) ->  | V149: ZZ | W149: 96
B150: ZZ | D150: =IF(E150:E514="","",$K$13) ->  | V150: ZZ | W150: 97
B151: ZZ | D151: =IF(E151:E515="","",$K$13) ->  | V151: ZZ | W151: 98
B152: ZZ | D152: =IF(E152:E516="","",$K$13) ->  | V152: ZZ | W152: 99
B153: ZZ | D153: =IF(E153:E517="","",$K$13) ->  | V153: ZZ | W153: 100
B154: ZZ | D154: =IF(E154:E518="","",$K$13) ->  | V154: ZZ | W154: 101
B155: ZZ | D155: =IF(E155:E519="","",$K$13) ->  | V155: ZZ | W155: 102
B156: ZZ | D156: =IF(E156:E520="","",$K$13) ->  | V156: ZZ | W156: 103
B157: ZZ | D157: =IF(E157:E521="","",$K$13) ->  | V157: ZZ | W157: 104
B158: ZZ | D158: =IF(E158:E522="","",$K$13) ->  | V158: ZZ | W158: 105
B159: ZZ | D159: =IF(E159:E523="","",$K$13) ->  | V159: ZZ | W159: 106
B160: ZZ | D160: =IF(E160:E524="","",$K$13) ->  | V160: ZZ | W160: 107
B161: ZZ | D161: =IF(E161:E525="","",$K$13) ->  | V161: ZZ | W161: 108
B162: ZZ | D162: =IF(E162:E526="","",$K$13) ->  | V162: ZZ | W162: 109
B163: ZZ | D163: =IF(E163:E527="","",$K$13) ->  | V163: ZZ | W163: 110
B164: ZZ | D164: =IF(E164:E528="","",$K$13) ->  | V164: ZZ | W164: 111
B165: ZZ | D165: =IF(E165:E529="","",$K$13) ->  | V165: ZZ | W165: 112
B166: ZZ | D166: =IF(E166:E530="","",$K$13) ->  | V166: ZZ | W166: 113
B167: ZZ | D167: =IF(E167:E531="","",$K$13) ->  | V167: ZZ | W167: 114
B168: ZZ | D168: =IF(E168:E532="","",$K$13) ->  | V168: ZZ | W168: 115
B169: ZZ | D169: =IF(E169:E533="","",$K$13) ->  | V169: ZZ | W169: 116
B170: ZZ | D170: =IF(E170:E534="","",$K$13) ->  | V170: ZZ | W170: 117
B171: ZZ | D171: =IF(E171:E535="","",$K$13) ->  | V171: ZZ | W171: 118
B172: ZZ | D172: =IF(E172:E536="","",$K$13) ->  | V172: ZZ | W172: 119
B173: ZZ | D173: =IF(E173:E537="","",$K$13) ->  | V173: ZZ | W173: 120
B174: ZZ | D174: =IF(E174:E538="","",$K$13) ->  | V174: ZZ | W174: 121
B175: ZZ | D175: =IF(E175:E539="","",$K$13) ->  | V175: ZZ | W175: 122
B176: ZZ | D176: =IF(E176:E540="","",$K$13) ->  | V176: ZZ | W176: 123
B177: ZZ | D177: =IF(E177:E541="","",$K$13) ->  | V177: ZZ | W177: 124
B178: ZZ | D178: =IF(E178:E542="","",$K$13) ->  | V178: ZZ | W178: 125
B179: ZZ | D179: =IF(E179:E543="","",$K$13) ->  | V179: ZZ | W179: 126
B180: ZZ | D180: =IF(E180:E544="","",$K$13) ->  | V180: ZZ | W180: 127
B181: ZZ | D181: =IF(E181:E545="","",$K$13) ->  | V181: ZZ | W181: 128
B182: ZZ | D182: =IF(E182:E546="","",$K$13) ->  | E182: =IF(F182="","",F182) ->  | V182: =IF(H182="","ZZ","AA") -> ZZ | W182: 129
B183: =IF(H183="","ZZ","AA") -> ZZ | C183: =IF(W183<$Z$21,W183,"") ->  | D183: =IF(E183:E547="","",$K$13) ->  | V183: ZZ | W183: 130
B184: ZZ | D184: =IF(E184:E548="","",$K$13) ->  | F184: =IF(C184="","",F183+1) ->  | V184: ZZ | W184: =W183+1 -> 131
B185: ZZ | D185: =IF(E185:E549="","",$K$13) ->  | V185: ZZ | W185: 132
B186: ZZ | D186: =IF(E186:E550="","",$K$13) ->  | V186: ZZ | W186: 133
B187: ZZ | D187: =IF(E187:E551="","",$K$13) ->  | V187: ZZ | W187: 134
B188: ZZ | D188: =IF(E188:E552="","",$K$13) ->  | V188: ZZ | W188: 135
B189: ZZ | D189: =IF(E189:E553="","",$K$13) ->  | V189: ZZ | W189: 136
B190: ZZ | D190: =IF(E190:E554="","",$K$13) ->  | V190: ZZ | W190: 137
B191: ZZ | D191: =IF(E191:E555="","",$K$13) ->  | V191: ZZ | W191: 138
B192: ZZ | D192: =IF(E192:E556="","",$K$13) ->  | V192: ZZ | W192: 139
B193: ZZ | D193: =IF(E193:E557="","",$K$13) ->  | V193: ZZ | W193: 140
B194: ZZ | D194: =IF(E194:E558="","",$K$13) ->  | V194: ZZ | W194: 141
B195: ZZ | D195: =IF(E195:E559="","",$K$13) ->  | V195: ZZ | W195: 142
B196: ZZ | D196: =IF(E196:E560="","",$K$13) ->  | V196: ZZ | W196: 143
B197: ZZ | D197: =IF(E197:E561="","",$K$13) ->  | V197: ZZ | W197: 144
B198: ZZ | D198: =IF(E198:E562="","",$K$13) ->  | V198: ZZ | W198: 145
B199: ZZ | D199: =IF(E199:E563="","",$K$13) ->  | V199: ZZ | W199: 146
B200: ZZ | D200: =IF(E200:E564="","",$K$13) ->  | V200: ZZ | W200: 147
B201: ZZ | D201: =IF(E201:E565="","",$K$13) ->  | V201: ZZ | W201: 148
B202: ZZ | D202: =IF(E202:E566="","",$K$13) ->  | V202: ZZ | W202: 149
B203: ZZ | D203: =IF(E203:E567="","",$K$13) ->  | V203: ZZ | W203: 150
B204: ZZ | D204: =IF(E204:E568="","",$K$13) ->  | V204: ZZ | W204: 151
B205: ZZ | D205: =IF(E205:E569="","",$K$13) ->  | V205: ZZ | W205: 152
B206: ZZ | D206: =IF(E206:E570="","",$K$13) ->  | V206: ZZ | W206: 153
B207: ZZ | D207: =IF(E207:E571="","",$K$13) ->  | V207: ZZ | W207: 154
B208: ZZ | D208: =IF(E208:E572="","",$K$13) ->  | V208: ZZ | W208: 155
B209: ZZ | D209: =IF(E209:E573="","",$K$13) ->  | V209: ZZ | W209: 156
... 576 more rows

Sheet Instructions
A2: Instructions
A4: 1. | B4: How to use this excel tool?
B6: Step 1: | C6: Start by entering the required information in the Summary of Trip section and Cost of Trip section
B8: Step 2: | C8: For each travel day listed under the Detailed Itinerary section, select a purpose from the drop down provided. Provide further detail in the next column where appropriate.
B10: Step 3: | C10: After completing step 2, the tool will work out if the trip is subject to FBT. It will also provide the amount of subject to FBT (if any) and Western Sydney University staff contibution required to eliminate any FBT liability for the University.
B11: Step 4: | C11: Save a copy of the file. Convert to PDF and attach to your Concur Travel Request.
B12: Step 5: | C12: For any changes post trip, update the DTS/Travel Diary form and re-attach to the Concur Travel Request.
A15: FAQ's
A17: Q. | B17: Total Western Sydney University funding for Trip (including Airfare) - What does this mean?
A18: A. | B18: This is the total cost of the trip that is included in the traveller's Concur Request and Expense Report (such as accommodation, meals, transport, incidentals, etc) that is to be met by the University.
A20: Q. | B20: Private Costs funded by Western Sydney University - What do I need to included here?
A21: A. | B21: You need to include all costs that relate to those travel days that are private in nature but are paid for by the University.
B22: Examples: | C22: • Accomodation costs for non business days
C23: • Additional car hire charges for child seats
C24: • Cost for recreational activities such as site seeing
A27: Q. | B27: Unavoidable days?
A28: A. | B28: Unavoidable days are defined as those days there are incidental to the business trip.
B29: These include:
B30: • | C30: If there is a few days gap between two business days and it is unreasonable to expect the traveller to return home before travelling back out for the second business trip, then such days may also be considered unavoidable.
B31: • | C31: Any weekends and/or public holidays falling between business days will be considered unavoidable and will not count towards the tally of private days. They will be considered the same as business days.
B32: • | C32: Where weekends and/or public holidays falls in between private travel periods, they will not be considered unavoidable and will be counted towards the tally of private days.
